[Event "Late-Titled-Tuesday-Blitz-October-24-2023"]
[Site "Chess.com"]
[Date "2023.10.24"]
[Round "1"]
[White "talaicito"]
[Black "NMJeevanK"]
[Result "0-1"]
[WhiteElo "2257"]
[BlackElo "2603"]
[TimeControl "180+1"]
[EndTime "14:07:27 PDT"]
[Termination "NMJeevanK won on time"]

1. d4 {[%clk 0:03:00.9]} 1... Nf6 {[%clk 0:02:58.3]} 2. Nc3 {[%clk 0:02:59.9]}
2... g6 {[%clk 0:02:56.3]} 3. Bf4 {[%clk 0:02:58.8]} 3... d6 {[%clk 0:02:56.1]}
4. e4 {[%clk 0:02:59.1]} 4... Bg7 {[%clk 0:02:56.3]} 5. Qd2 {[%clk 0:02:59.6]}
5... O-O {[%clk 0:02:56]} 6. O-O-O {[%clk 0:02:59.5]} 6... Nbd7 {[%clk 0:02:54]}
7. f3 {[%clk 0:02:57]} 7... c5 {[%clk 0:02:53.3]} 8. dxc5 {[%clk 0:02:47.2]}
8... Nxc5 {[%clk 0:02:52.8]} 9. e5 {[%clk 0:02:47.2]} 9... Nh5 {[%clk
0:02:53.1]} 10. Bh6 {[%clk 0:02:31.6]} 10... Qa5 {[%clk 0:02:36.6]} 11. g4
{[%clk 0:02:16]} 11... Bxh6 {[%clk 0:02:36.3]} 12. Qxh6 {[%clk 0:02:14.7]} 12...
Ng7 {[%clk 0:02:36]} 13. exd6 {[%clk 0:02:13.4]} 13... exd6 {[%clk 0:02:29.8]}
14. h4 {[%clk 0:02:12.6]} 14... Nce6 {[%clk 0:02:24.4]} 15. Bc4 {[%clk
0:01:46.1]} 15... Bd7 {[%clk 0:02:05.2]} 16. Nd5 {[%clk 0:01:42.5]} 16... Qd8
{[%clk 0:01:56.4]} 17. h5 {[%clk 0:01:30.3]} 17... Ne8 {[%clk 0:01:07.9]} 18.
hxg6 {[%clk 0:01:25.9]} 18... Qg5+ {[%clk 0:01:07.5]} 19. Qxg5 {[%clk
0:01:13.9]} 19... Nxg5 {[%clk 0:01:08.4]} 20. f4 {[%clk 0:00:50]} 20... Ne4
{[%clk 0:00:48.6]} 21. g5 {[%clk 0:00:35.3]} 21... hxg6 {[%clk 0:00:36.3]} 22.
Rh2 {[%clk 0:00:24.4]} 22... Kg7 {[%clk 0:00:31.9]} 23. Nf3 {[%clk 0:00:22.8]}
23... Rh8 {[%clk 0:00:23.2]} 24. Re2 {[%clk 0:00:20.6]} 24... Bf5 {[%clk
0:00:20.6]} 25. Nd4 {[%clk 0:00:19.4]} 25... Rc8 {[%clk 0:00:19.8]} 26. Bd3
{[%clk 0:00:18.3]} 26... Ng3 {[%clk 0:00:18.5]} 27. Re7 {[%clk 0:00:17.8]} 27...
Bxd3 {[%clk 0:00:18.3]} 28. Rxd3 {[%clk 0:00:16.3]} 28... Rh1+ {[%clk
0:00:18.5]} 29. Rd1 {[%clk 0:00:16.6]} 29... Rxd1+ {[%clk 0:00:18.5]} 30. Kxd1
{[%clk 0:00:17.5]} 30... Rc5 {[%clk 0:00:17.3]} 31. Nc3 {[%clk 0:00:10]} 31...
Nc7 {[%clk 0:00:14.5]} 32. Kd2 {[%clk 0:00:06]} 32... a6 {[%clk 0:00:09.4]} 33.
b4 {[%clk 0:00:05.7]} 33... Nf5 {[%clk 0:00:05.7]} 34. bxc5 {[%clk 0:00:03.2]}
34... Nxe7 {[%clk 0:00:05.7]} 35. cxd6 {[%clk 0:00:03.5]} 35... Ned5 {[%clk
0:00:04.1]} 36. dxc7 {[%clk 0:00:03.6]} 36... Nxc7 {[%clk 0:00:04.3]} 37. Kd3
{[%clk 0:00:04]} 37... Kf8 {[%clk 0:00:04.8]} 38. Ne4 {[%clk 0:00:03.9]} 38...
Ke7 {[%clk 0:00:05.7]} 39. c4 {[%clk 0:00:03.7]} 39... Ne8 {[%clk 0:00:05.8]}
40. c5 {[%clk 0:00:02]} 40... Ng7 {[%clk 0:00:06.2]} 0-1

[Event "Late-Titled-Tuesday-Blitz-October-24-2023"]
[Site "Chess.com"]
[Date "2023.10.24"]
[Round "1"]
[White "Sanyura"]
[Black "ljm509"]
[Result "1-0"]
[WhiteElo "2621"]
[BlackElo "2303"]
[TimeControl "180+1"]
[EndTime "14:07:29 PDT"]
[Termination "Sanyura won by checkmate"]

1. Nf3 {[%clk 0:02:49.9]} 1... Nf6 {[%clk 0:02:34.5]} 2. g3 {[%clk 0:02:50.8]}
2... g6 {[%clk 0:02:33.9]} 3. Bg2 {[%clk 0:02:47.8]} 3... Bg7 {[%clk 0:02:34.8]}
4. O-O {[%clk 0:02:48.7]} 4... O-O {[%clk 0:02:35.3]} 5. d3 {[%clk 0:02:49.6]}
5... d5 {[%clk 0:02:34.8]} 6. Nbd2 {[%clk 0:02:50.5]} 6... c5 {[%clk 0:02:32.6]}
7. e4 {[%clk 0:02:51.2]} 7... Nc6 {[%clk 0:02:29.4]} 8. exd5 {[%clk 0:02:51.7]}
8... Nxd5 {[%clk 0:02:28.7]} 9. Nc4 {[%clk 0:02:51.7]} 9... b6 {[%clk
0:02:26.8]} 10. a4 {[%clk 0:02:51.4]} 10... Bb7 {[%clk 0:02:26.2]} 11. a5 {[%clk
0:02:51.8]} 11... Nxa5 {[%clk 0:02:20.1]} 12. Nxa5 {[%clk 0:02:51.3]} 12... bxa5
{[%clk 0:02:20.7]} 13. c3 {[%clk 0:02:45]} 13... Bc6 {[%clk 0:02:09.9]} 14. Re1
{[%clk 0:02:41.2]} 14... Qc7 {[%clk 0:02:03.7]} 15. Nd2 {[%clk 0:02:39.5]} 15...
a4 {[%clk 0:01:56.7]} 16. Ne4 {[%clk 0:02:35.6]} 16... Qb6 {[%clk 0:01:54.4]}
17. h4 {[%clk 0:02:28.6]} 17... e5 {[%clk 0:01:46.6]} 18. h5 {[%clk 0:02:25.7]}
18... f5 {[%clk 0:01:20.8]} 19. Nd6 {[%clk 0:02:25.7]} 19... Rad8 {[%clk
0:01:12.8]} 20. Nc4 {[%clk 0:02:23.5]} 20... Qc7 {[%clk 0:01:12]} 21. Bg5 {[%clk
0:02:18.9]} 21... Rd7 {[%clk 0:01:10.1]} 22. hxg6 {[%clk 0:02:14.6]} 22... hxg6
{[%clk 0:01:09.3]} 23. Rxa4 {[%clk 0:02:03]} 23... e4 {[%clk 0:01:04.2]} 24. Ra6
{[%clk 0:01:54]} 24... Bb5 {[%clk 0:00:41]} 25. Rxg6 {[%clk 0:01:52.2]} 25...
Bxc4 {[%clk 0:00:40.6]} 26. Rxg7+ {[%clk 0:00:33.5]} 26... Kxg7 {[%clk 0:00:27]}
27. dxc4 {[%clk 0:00:25.3]} 27... Ne3 {[%clk 0:00:25.9]} 28. Qh5 {[%clk
0:00:15.6]} 28... Rh8 {[%clk 0:00:25.6]} 29. Bf6+ {[%clk 0:00:14.9]} 29... Kxf6
{[%clk 0:00:18.3]} 30. Qxh8+ {[%clk 0:00:15.8]} 30... Kf7 {[%clk 0:00:16.4]} 31.
fxe3 {[%clk 0:00:13.9]} 31... Qxg3 {[%clk 0:00:14.4]} 32. Rf1 {[%clk 0:00:13.9]}
32... Qxe3+ {[%clk 0:00:12.8]} 33. Kh1 {[%clk 0:00:14]} 33... Ke6 {[%clk
0:00:13]} 34. Qe8+ {[%clk 0:00:11.6]} 34... Re7 {[%clk 0:00:12.9]} 35. Qc6+
{[%clk 0:00:10.8]} 35... Ke5 {[%clk 0:00:11.8]} 36. Qd5+ {[%clk 0:00:10.6]}
36... Kf6 {[%clk 0:00:11.7]} 37. Qxf5+ {[%clk 0:00:11.3]} 37... Kg7 {[%clk
0:00:11.4]} 38. Qf6+ {[%clk 0:00:11.9]} 38... Kg8 {[%clk 0:00:09.1]} 39. Qxe7
{[%clk 0:00:12.1]} 39... Qh6+ {[%clk 0:00:08.2]} 40. Kg1 {[%clk 0:00:12.7]}
40... Qe3+ {[%clk 0:00:08.3]} 41. Rf2 {[%clk 0:00:13.2]} 41... Qe1+ {[%clk
0:00:07.1]} 42. Bf1 {[%clk 0:00:13.1]} 42... e3 {[%clk 0:00:05.6]} 43. Rf8#
{[%clk 0:00:13.2]} 1-0

[Event "Late-Titled-Tuesday-Blitz-October-24-2023"]
[Site "Chess.com"]
[Date "2023.10.24"]
[Round "1"]
[White "hellokostya"]
[Black "AsselLesbekova"]
[Result "1-0"]
[WhiteElo "2607"]
[BlackElo "2278"]
[TimeControl "180+1"]
[EndTime "14:07:29 PDT"]
[Termination "hellokostya won by resignation"]

1. Nf3 {[%clk 0:02:57]} 1... d5 {[%clk 0:02:59.1]} 2. e3 {[%clk 0:02:49]} 2...
e6 {[%clk 0:02:56.4]} 3. c4 {[%clk 0:02:49.1]} 3... a6 {[%clk 0:02:52.7]} 4. Nc3
{[%clk 0:02:48.9]} 4... dxc4 {[%clk 0:02:52.3]} 5. Bxc4 {[%clk 0:02:48.4]} 5...
b5 {[%clk 0:02:52.5]} 6. Bb3 {[%clk 0:02:40]} 6... Nf6 {[%clk 0:02:48.9]} 7. d4
{[%clk 0:02:39.7]} 7... Bb7 {[%clk 0:02:48.7]} 8. O-O {[%clk 0:02:39.2]} 8...
Be7 {[%clk 0:02:38.6]} 9. Re1 {[%clk 0:02:34.4]} 9... O-O {[%clk 0:02:35.1]} 10.
a3 {[%clk 0:02:22.7]} 10... c5 {[%clk 0:02:32.6]} 11. e4 {[%clk 0:02:16.7]}
11... b4 {[%clk 0:02:20.2]} 12. axb4 {[%clk 0:02:14.3]} 12... cxb4 {[%clk
0:02:21.1]} 13. Na4 {[%clk 0:01:43.2]} 13... Bxe4 {[%clk 0:02:09.1]} 14. Ne5
{[%clk 0:01:37.3]} 14... Bd5 {[%clk 0:01:53.9]} 15. Bc2 {[%clk 0:01:31.7]} 15...
Nc6 {[%clk 0:01:47.6]} 16. Bf4 {[%clk 0:01:28.9]} 16... g6 {[%clk 0:01:21]} 17.
Nc5 {[%clk 0:01:17.4]} 17... Nxe5 {[%clk 0:00:53.8]} 18. Bxe5 {[%clk 0:01:18.3]}
18... Nd7 {[%clk 0:00:53.4]} 19. Nxd7 {[%clk 0:01:02.2]} 19... Qxd7 {[%clk
0:00:54.3]} 20. Qd2 {[%clk 0:01:02.3]} 20... Rfc8 {[%clk 0:00:41.1]} 21. Bd3
{[%clk 0:00:59]} 21... Bf8 {[%clk 0:00:34.9]} 22. h4 {[%clk 0:00:58.5]} 22...
Qb7 {[%clk 0:00:26]} 23. Qg5 {[%clk 0:00:51.5]} 23... Bg7 {[%clk 0:00:23.8]} 24.
h5 {[%clk 0:00:46.6]} 24... Bxe5 {[%clk 0:00:13.5]} 25. Rxe5 {[%clk 0:00:37.5]}
25... Re8 {[%clk 0:00:10.1]} 26. hxg6 {[%clk 0:00:31.7]} 26... fxg6 {[%clk
0:00:09.6]} 27. Rae1 {[%clk 0:00:29.2]} 27... Qf7 {[%clk 0:00:09.6]} 28. R5e3
{[%clk 0:00:26.6]} 28... a5 {[%clk 0:00:08.8]} 29. Rg3 {[%clk 0:00:24.7]} 29...
Ra7 {[%clk 0:00:08.4]} 30. Rg4 {[%clk 0:00:19]} 30... Qe7 {[%clk 0:00:08.4]} 31.
Qh6 {[%clk 0:00:18.6]} 31... Qg7 {[%clk 0:00:08.3]} 32. Qh4 {[%clk 0:00:18.8]}
32... Qe7 {[%clk 0:00:07.7]} 33. Qg3 {[%clk 0:00:19.1]} 33... Qc7 {[%clk
0:00:07.3]} 34. Re5 {[%clk 0:00:18]} 34... a4 {[%clk 0:00:06.9]} 35. Bxg6 {[%clk
0:00:17]} 35... hxg6 {[%clk 0:00:06.5]} 36. Rxg6+ {[%clk 0:00:17.9]} 36... Kf8
{[%clk 0:00:06.2]} 37. Qh4 {[%clk 0:00:12.5]} 37... Qf7 {[%clk 0:00:02.2]} 38.
Rf6 {[%clk 0:00:12.2]} 38... Ke7 {[%clk 0:00:02.7]} 39. Rxf7+ {[%clk 0:00:10.3]}
39... Kxf7 {[%clk 0:00:03.6]} 40. Qh7+ {[%clk 0:00:09.9]} 40... Kf6 {[%clk
0:00:03.7]} 41. Qxa7 {[%clk 0:00:08.7]} 1-0

[Event "Late-Titled-Tuesday-Blitz-October-24-2023"]
[Site "Chess.com"]
[Date "2023.10.24"]
[Round "1"]
[White "RCone"]
[Black "yosephtaher"]
[Result "0-1"]
[WhiteElo "2415"]
[BlackElo "2743"]
[TimeControl "180+1"]
[EndTime "14:07:30 PDT"]
[Termination "yosephtaher won on time"]

1. e4 {[%clk 0:03:00.9]} 1... c5 {[%clk 0:02:50.8]} 2. Nc3 {[%clk 0:03:00.2]}
2... g6 {[%clk 0:02:50.8]} 3. h4 {[%clk 0:02:57.4]} 3... h5 {[%clk 0:02:50.5]}
4. Bc4 {[%clk 0:02:57.7]} 4... Bg7 {[%clk 0:02:47.4]} 5. Qf3 {[%clk 0:02:57.7]}
5... e6 {[%clk 0:02:47.4]} 6. d4 {[%clk 0:02:57.4]} 6... cxd4 {[%clk 0:02:43.4]}
7. Nb5 {[%clk 0:02:56.6]} 7... d5 {[%clk 0:02:25.3]} 8. exd5 {[%clk 0:02:48.6]}
8... Nf6 {[%clk 0:02:16.1]} 9. dxe6 {[%clk 0:02:36.1]} 9... O-O {[%clk
0:02:14.5]} 10. exf7+ {[%clk 0:02:36]} 10... Kh8 {[%clk 0:02:15]} 11. Bg5 {[%clk
0:02:19.9]} 11... Bg4 {[%clk 0:02:12]} 12. Qf4 {[%clk 0:01:57.3]} 12... Nbd7
{[%clk 0:02:07.3]} 13. Nxd4 {[%clk 0:01:44.3]} 13... Rc8 {[%clk 0:02:01.7]} 14.
Bb3 {[%clk 0:01:11.6]} 14... Qa5+ {[%clk 0:01:59.2]} 15. Qd2 {[%clk 0:01:04.1]}
15... Qe5+ {[%clk 0:01:57.5]} 16. Nge2 {[%clk 0:00:58.1]} 16... Ne4 {[%clk
0:01:52.6]} 17. Qe3 {[%clk 0:00:56.4]} 17... Nxg5 {[%clk 0:01:26.4]} 18. Qxe5
{[%clk 0:00:51.8]} 18... Bxe5 {[%clk 0:01:26]} 19. hxg5 {[%clk 0:00:52]} 19...
Bxe2 {[%clk 0:01:26.2]} 20. Nxe2 {[%clk 0:00:51.4]} 20... Bxb2 {[%clk
0:01:25.3]} 21. Rd1 {[%clk 0:00:48.8]} 21... Nc5 {[%clk 0:01:17.5]} 22. Nf4
{[%clk 0:00:43.7]} 22... Kh7 {[%clk 0:01:04.9]} 23. Bd5 {[%clk 0:00:37.2]} 23...
Be5 {[%clk 0:00:59.4]} 24. Ne6 {[%clk 0:00:28.7]} 24... Nxe6 {[%clk 0:00:56.4]}
25. Bxe6 {[%clk 0:00:29.1]} 25... Rxc2 {[%clk 0:00:57.1]} 26. O-O {[%clk
0:00:23]} 26... Bf4 {[%clk 0:00:46.5]} 27. Rd7 {[%clk 0:00:20.5]} 27... Bxg5
{[%clk 0:00:44.5]} 28. Rxb7 {[%clk 0:00:20.4]} 28... Kg7 {[%clk 0:00:44.8]} 29.
Rxa7 {[%clk 0:00:19.7]} 29... Bf6 {[%clk 0:00:44.1]} 30. a4 {[%clk 0:00:17.2]}
30... h4 {[%clk 0:00:44]} 31. Re1 {[%clk 0:00:17]} 31... Bd4 {[%clk 0:00:43]}
32. Rd7 {[%clk 0:00:14.1]} 32... Bxf2+ {[%clk 0:00:42.7]} 33. Kf1 {[%clk
0:00:15]} 33... Bxe1 {[%clk 0:00:42.9]} 34. Kxe1 {[%clk 0:00:15.9]} 34... Rxg2
{[%clk 0:00:43.2]} 35. Rd3 {[%clk 0:00:12.1]} 35... Rg5 {[%clk 0:00:39.3]} 36.
Bc4 {[%clk 0:00:10.1]} 36... Rg4 {[%clk 0:00:38.6]} 37. Bb3 {[%clk 0:00:10]}
37... Rh8 {[%clk 0:00:29.9]} 38. Kf2 {[%clk 0:00:09.9]} 38... h3 {[%clk
0:00:28.6]} 39. Bd5 {[%clk 0:00:04.4]} 39... h2 {[%clk 0:00:28]} 40. Rd1 {[%clk
0:00:03.2]} 40... Rxa4 {[%clk 0:00:27.5]} 41. Rh1 {[%clk 0:00:02.8]} 41... Rf4+
{[%clk 0:00:27.8]} 42. Ke3 {[%clk 0:00:02.7]} 42... Rf6 {[%clk 0:00:23.7]} 43.
Kd4 {[%clk 0:00:01.2]} 43... Rh5 {[%clk 0:00:22.2]} 0-1

[Event "Late-Titled-Tuesday-Blitz-October-24-2023"]
[Site "Chess.com"]
[Date "2023.10.24"]
[Round "1"]
[White "Paladin61"]
[Black "leoduarte"]
[Result "0-1"]
[WhiteElo "2699"]
[BlackElo "2420"]
[TimeControl "180+1"]
[EndTime "14:07:31 PDT"]
[Termination "leoduarte won by checkmate"]

1. e4 {[%clk 0:02:58.4]} 1... e5 {[%clk 0:03:00]} 2. Nf3 {[%clk 0:02:46.2]} 2...
Nc6 {[%clk 0:02:59.6]} 3. d4 {[%clk 0:02:44.4]} 3... exd4 {[%clk 0:02:57.8]} 4.
Nxd4 {[%clk 0:02:45.3]} 4... Nf6 {[%clk 0:02:58.4]} 5. Nc3 {[%clk 0:02:38.1]}
5... Bb4 {[%clk 0:02:58.4]} 6. Nxc6 {[%clk 0:02:38.3]} 6... bxc6 {[%clk
0:02:59.3]} 7. Bd3 {[%clk 0:02:38.3]} 7... d5 {[%clk 0:02:59.5]} 8. exd5 {[%clk
0:02:36.7]} 8... cxd5 {[%clk 0:03:00.4]} 9. O-O {[%clk 0:02:36.8]} 9... O-O
{[%clk 0:03:00.6]} 10. h3 {[%clk 0:02:31.8]} 10... h6 {[%clk 0:02:45.7]} 11. Qf3
{[%clk 0:02:31.3]} 11... c6 {[%clk 0:02:45.2]} 12. Ne2 {[%clk 0:02:27.5]} 12...
Bd6 {[%clk 0:02:22.2]} 13. c4 {[%clk 0:02:20.8]} 13... Bc7 {[%clk 0:02:12]} 14.
Bf4 {[%clk 0:02:13]} 14... Rb8 {[%clk 0:02:10.1]} 15. b3 {[%clk 0:02:10.1]}
15... Re8 {[%clk 0:02:09.4]} 16. cxd5 {[%clk 0:01:59.2]} 16... cxd5 {[%clk
0:01:59.7]} 17. Nd4 {[%clk 0:01:54.7]} 17... Rb4 {[%clk 0:01:27.9]} 18. Bxc7
{[%clk 0:01:46.4]} 18... Qxc7 {[%clk 0:01:28.8]} 19. Rac1 {[%clk 0:01:46]} 19...
Qd6 {[%clk 0:01:12]} 20. Nc6 {[%clk 0:01:41.9]} 20... Rf4 {[%clk 0:01:07.6]} 21.
Qg3 {[%clk 0:01:36.6]} 21... Bd7 {[%clk 0:01:04.9]} 22. Nxa7 {[%clk 0:01:19.3]}
22... Nh5 {[%clk 0:00:44.5]} 23. Qh2 {[%clk 0:01:16.9]} 23... Qb6 {[%clk
0:00:37.2]} 24. g4 {[%clk 0:00:58.6]} 24... Qxa7 {[%clk 0:00:20.5]} 25. gxh5
{[%clk 0:00:58.6]} 25... Qd4 {[%clk 0:00:20.6]} 26. Rcd1 {[%clk 0:00:50.3]}
26... Qf6 {[%clk 0:00:17.6]} 27. Rfe1 {[%clk 0:00:44.8]} 27... Rc8 {[%clk
0:00:14]} 28. Be2 {[%clk 0:00:34.8]} 28... g6 {[%clk 0:00:13.9]} 29. hxg6 {[%clk
0:00:32.4]} 29... fxg6 {[%clk 0:00:13.7]} 30. Rxd5 {[%clk 0:00:19.5]} 30... Bc6
{[%clk 0:00:13.4]} 31. Rd2 {[%clk 0:00:16.3]} 31... Rf8 {[%clk 0:00:13.2]} 32.
Bg4 {[%clk 0:00:13.6]} 32... h5 {[%clk 0:00:07]} 33. Re6 {[%clk 0:00:12.2]}
33... Qa1+ {[%clk 0:00:06.3]} 34. Rd1 {[%clk 0:00:12]} 34... Rxg4+ {[%clk
0:00:04]} 35. Kf1 {[%clk 0:00:03.1]} 35... Qxd1+ {[%clk 0:00:04.9]} 36. Re1
{[%clk 0:00:03.3]} 36... Qd3+ {[%clk 0:00:04.6]} 37. Re2 {[%clk 0:00:02.9]}
37... Qd1+ {[%clk 0:00:03.1]} 38. Re1 {[%clk 0:00:03.1]} 38... Bb5# {[%clk
0:00:03.8]} 0-1

[Event "Late-Titled-Tuesday-Blitz-October-24-2023"]
[Site "Chess.com"]
[Date "2023.10.24"]
[Round "1"]
[White "Artemiki"]
[Black "DefiantChair"]
[Result "0-1"]
[WhiteElo "2379"]
[BlackElo "2680"]
[TimeControl "180+1"]
[EndTime "14:07:31 PDT"]
[Termination "DefiantChair won on time"]

1. e4 {[%clk 0:03:00.9]} 1... e5 {[%clk 0:03:00]} 2. Nf3 {[%clk 0:03:00.8]} 2...
Nc6 {[%clk 0:03:00.6]} 3. Bb5 {[%clk 0:03:00.8]} 3... a6 {[%clk 0:02:59.9]} 4.
Ba4 {[%clk 0:03:01.2]} 4... Nf6 {[%clk 0:03:00.3]} 5. O-O {[%clk 0:03:01.6]}
5... Nxe4 {[%clk 0:03:00.8]} 6. d4 {[%clk 0:03:00.9]} 6... b5 {[%clk 0:03:01.1]}
7. Bb3 {[%clk 0:03:00.4]} 7... d5 {[%clk 0:03:01.7]} 8. dxe5 {[%clk 0:03:00.7]}
8... Be6 {[%clk 0:03:02]} 9. Qe2 {[%clk 0:03:00.8]} 9... Nc5 {[%clk 0:03:00.5]}
10. Rd1 {[%clk 0:02:59.9]} 10... Nxb3 {[%clk 0:03:00]} 11. axb3 {[%clk
0:02:59.7]} 11... Qd7 {[%clk 0:02:55.2]} 12. c4 {[%clk 0:02:54.7]} 12... bxc4
{[%clk 0:02:40.7]} 13. bxc4 {[%clk 0:02:54]} 13... d4 {[%clk 0:02:23.4]} 14.
Nbd2 {[%clk 0:02:10.9]} 14... Nb4 {[%clk 0:02:11.3]} 15. Nb3 {[%clk 0:01:58.5]}
15... c5 {[%clk 0:02:04.2]} 16. Qe4 {[%clk 0:01:51.1]} 16... Rd8 {[%clk
0:02:00.6]} 17. Bg5 {[%clk 0:01:50.8]} 17... Bxc4 {[%clk 0:01:51]} 18. Nbxd4
{[%clk 0:01:26.7]} 18... Bd5 {[%clk 0:01:38.4]} 19. Qe2 {[%clk 0:01:05.2]} 19...
cxd4 {[%clk 0:01:36.5]} 20. Bxd8 {[%clk 0:01:05.7]} 20... Qxd8 {[%clk
0:01:34.5]} 21. Nxd4 {[%clk 0:01:04.2]} 21... Bc5 {[%clk 0:01:30.5]} 22. Rac1
{[%clk 0:00:56.9]} 22... Ba7 {[%clk 0:01:27.8]} 23. Nf5 {[%clk 0:00:43.7]} 23...
O-O {[%clk 0:01:23.1]} 24. Qg4 {[%clk 0:00:42.1]} 24... g6 {[%clk 0:01:17.7]}
25. Nh6+ {[%clk 0:00:41.8]} 25... Kg7 {[%clk 0:01:16.6]} 26. Qxb4 {[%clk
0:00:39.1]} 26... Kxh6 {[%clk 0:01:13.6]} 27. Qd2+ {[%clk 0:00:34.7]} 27... Kg7
{[%clk 0:01:12.8]} 28. Qxd5 {[%clk 0:00:34.7]} 28... Qb6 {[%clk 0:01:11.3]} 29.
Qf3 {[%clk 0:00:28.2]} 29... Qxb2 {[%clk 0:01:05.4]} 30. Rc7 {[%clk 0:00:23.1]}
30... Bb6 {[%clk 0:00:56.3]} 31. Qf6+ {[%clk 0:00:22]} 31... Kg8 {[%clk
0:00:55.6]} 32. Rcd7 {[%clk 0:00:17.3]} 32... a5 {[%clk 0:00:50]} 33. R7d6
{[%clk 0:00:14.7]} 33... Bc5 {[%clk 0:00:47]} 34. Rd8 {[%clk 0:00:08.9]} 34...
a4 {[%clk 0:00:46.7]} 35. Rxf8+ {[%clk 0:00:08.8]} 35... Bxf8 {[%clk 0:00:47.6]}
36. Qa6 {[%clk 0:00:05.4]} 36... a3 {[%clk 0:00:46.8]} 37. e6 {[%clk 0:00:04.7]}
37... a2 {[%clk 0:00:45.2]} 38. exf7+ {[%clk 0:00:04.7]} 38... Kg7 {[%clk
0:00:45.3]} 39. Qa4 {[%clk 0:00:03.6]} 39... Bc5 {[%clk 0:00:43.5]} 40. Rf1
{[%clk 0:00:01.8]} 40... Bd4 {[%clk 0:00:27.9]} 0-1

[Event "Late-Titled-Tuesday-Blitz-October-24-2023"]
[Site "Chess.com"]
[Date "2023.10.24"]
[Round "1"]
[White "rockstar0902"]
[Black "boracilek"]
[Result "1-0"]
[WhiteElo "2592"]
[BlackElo "2203"]
[TimeControl "180+1"]
[EndTime "14:07:32 PDT"]
[Termination "rockstar0902 won on time"]

1. c4 {[%clk 0:03:00.9]} 1... Nf6 {[%clk 0:02:44.2]} 2. Nc3 {[%clk 0:02:59.3]}
2... g6 {[%clk 0:02:43.4]} 3. e4 {[%clk 0:02:58.7]} 3... d6 {[%clk 0:02:40.2]}
4. g3 {[%clk 0:02:58.4]} 4... Bg7 {[%clk 0:02:40.6]} 5. Bg2 {[%clk 0:02:59]}
5... O-O {[%clk 0:02:41.3]} 6. Nge2 {[%clk 0:02:59.7]} 6... e5 {[%clk
0:02:41.3]} 7. O-O {[%clk 0:02:59.1]} 7... Nc6 {[%clk 0:02:40.1]} 8. d3 {[%clk
0:02:59]} 8... Be6 {[%clk 0:02:23.8]} 9. h3 {[%clk 0:02:58.7]} 9... Qd7 {[%clk
0:02:22.7]} 10. Kh2 {[%clk 0:02:57.9]} 10... Nh5 {[%clk 0:02:22.9]} 11. g4
{[%clk 0:02:34.7]} 11... Nf6 {[%clk 0:02:15.9]} 12. f4 {[%clk 0:02:30.5]} 12...
exf4 {[%clk 0:02:15.2]} 13. Nxf4 {[%clk 0:02:29.9]} 13... Qd8 {[%clk 0:01:56.8]}
14. Be3 {[%clk 0:02:13.4]} 14... Nd7 {[%clk 0:01:53.5]} 15. Qd2 {[%clk
0:01:46.1]} 15... Qh4 {[%clk 0:01:48.4]} 16. Qf2 {[%clk 0:01:30.4]} 16... Qxf2
{[%clk 0:01:46.9]} 17. Rxf2 {[%clk 0:01:31.3]} 17... Bd4 {[%clk 0:01:39.5]} 18.
Bxd4 {[%clk 0:01:29.5]} 18... Nxd4 {[%clk 0:01:40.4]} 19. Ncd5 {[%clk 0:01:24]}
19... Bxd5 {[%clk 0:01:33.7]} 20. Nxd5 {[%clk 0:01:22.2]} 20... c6 {[%clk
0:01:32.2]} 21. Nf6+ {[%clk 0:01:19.7]} 21... Nxf6 {[%clk 0:01:32.4]} 22. Rxf6
{[%clk 0:01:20.6]} 22... Rad8 {[%clk 0:01:31.3]} 23. Raf1 {[%clk 0:01:19]} 23...
Kg7 {[%clk 0:01:21.9]} 24. g5 {[%clk 0:01:14.3]} 24... c5 {[%clk 0:01:09.6]} 25.
h4 {[%clk 0:01:11.8]} 25... Nc6 {[%clk 0:01:09.6]} 26. Kg3 {[%clk 0:01:06.4]}
26... Ne5 {[%clk 0:01:09.4]} 27. Rd1 {[%clk 0:01:06.9]} 27... h6 {[%clk
0:01:07.3]} 28. b3 {[%clk 0:01:03.9]} 28... hxg5 {[%clk 0:01:07.2]} 29. hxg5
{[%clk 0:01:04.8]} 29... Rh8 {[%clk 0:01:07.1]} 30. d4 {[%clk 0:01:01.7]} 30...
Nc6 {[%clk 0:01:07.3]} 31. dxc5 {[%clk 0:00:59.3]} 31... dxc5 {[%clk 0:01:07.3]}
32. Rd5 {[%clk 0:00:58.4]} 32... Nb4 {[%clk 0:00:46.2]} 33. Rxc5 {[%clk
0:00:55.8]} 33... Rd3+ {[%clk 0:00:44.4]} 34. Bf3 {[%clk 0:00:55.3]} 34... Rd7
{[%clk 0:00:39.7]} 35. e5 {[%clk 0:00:53.4]} 35... Nd3 {[%clk 0:00:37.1]} 36.
Rb5 {[%clk 0:00:53.2]} 36... a6 {[%clk 0:00:36.8]} 37. Rxb7 {[%clk 0:00:52.8]}
37... Rxb7 {[%clk 0:00:36.9]} 38. Bxb7 {[%clk 0:00:53.7]} 38... Nxe5 {[%clk
0:00:37.5]} 39. Rxa6 {[%clk 0:00:47.3]} 39... Rh5 {[%clk 0:00:30.8]} 40. Be4
{[%clk 0:00:39.7]} 40... Rxg5+ {[%clk 0:00:28]} 41. Kf4 {[%clk 0:00:39.9]} 41...
f6 {[%clk 0:00:28.1]} 42. c5 {[%clk 0:00:36.4]} 42... Rg4+ {[%clk 0:00:18.5]}
43. Ke3 {[%clk 0:00:36.5]} 43... f5 {[%clk 0:00:18]} 44. Bd5 {[%clk 0:00:36.8]}
44... Kf8 {[%clk 0:00:09.4]} 45. c6 {[%clk 0:00:34.1]} 45... Ke7 {[%clk
0:00:09.9]} 46. c7 {[%clk 0:00:27.6]} 46... Kd7 {[%clk 0:00:09.9]} 47. Ra7
{[%clk 0:00:28.2]} 1-0